[Event "GER-ch Blitz 2019"]
[Site "Magdeburg"]
[Date "2019.05.25"]
[Round "11.2"]
[White "Baskin, Robert"]
[Black "Braeuer, Franz"]
[Result "1-0"]
[ECO "A45"]
[WhiteElo "2398"]
[BlackElo "2445"]
[Annotator "NA"]
[PlyCount "97"]
[EventDate "2019.05.25"]
[EventType "tourn"]
[EventCountry "GER"]
[Tiebreak "Number of wins+Number of black wins"]
[SourceTitle "playchess.com"]
[Source "ChessBase"]
[SourceQuality "1"]
[TimeControl "180+2"]

1. d4 {[%emt 0:00:00]} Nf6 {[%emt 0:00:00]} 2. Bf4 {[%emt 0:00:00]} d5 {
[%emt 0:00:00]} 3. e3 {[%emt 0:00:01]} e6 {[%emt 0:00:04]} 4. Nd2 {[%emt 0:00:
02]} Bd6 {[%emt 0:00:01]} 5. Bg3 {[%emt 0:00:01]} O-O {[%emt 0:00:01]} 6. Ngf3
{[%emt 0:00:02]} b6 {[%emt 0:00:01]} 7. c3 {[%emt 0:00:03]} Bb7 {[%emt 0:00:01]
} 8. Bd3 {[%emt 0:00:02]} c5 {[%emt 0:00:01]} 9. Qe2 {[%emt 0:00:05]} Qc7 {
[%emt 0:00:06]} 10. e4 {[%emt 0:00:27]} dxe4 {[%emt 0:00:04]} 11. Nxe4 {
[%emt 0:00:01]} Nxe4 {[%emt 0:00:02]} 12. Bxe4 {[%emt 0:00:01]} Bxe4 {[%emt 0:
00:06]} 13. Qxe4 {[%emt 0:00:01]} Nd7 {[%emt 0:00:02]} 14. O-O {[%emt 0:00:14]}
Nf6 {[%emt 0:00:15]} 15. Qe2 {[%emt 0:00:02]} Bxg3 {[%emt 0:00:06]} 16. hxg3 {
[%emt 0:00:01]} Rfd8 {[%emt 0:00:09]} 17. Rad1 {[%emt 0:00:07]} cxd4 {[%emt 0:
00:19]} 18. Nxd4 {[%emt 0:00:02]} Qc5 {[%emt 0:00:17]} 19. Nf3 {[%emt 0:00:12]}
Rd5 {[%emt 0:00:10]} 20. Rxd5 {[%emt 0:00:07]} Qxd5 {[%emt 0:00:03]} 21. c4 {
[%emt 0:00:16]} Qa5 {[%emt 0:00:15]} 22. b3 {[%emt 0:00:01]} Rd8 {[%emt 0:00:
10]} 23. Rd1 {[%emt 0:00:03]} Rxd1+ 24. Qxd1 {[%emt 0:00:01]} h6 {[%emt 0:00:
19]} 25. Qc2 {[%emt 0:00:23]} Qc5 {[%emt 0:00:05]} 26. Qd2 {[%emt 0:00:05]} Ne4
{[%emt 0:00:24]} 27. Qd4 {[%emt 0:00:08]} Qxd4 {[%emt 0:00:36]} 28. Nxd4 {
[%emt 0:00:02]} Kf8 {[%emt 0:00:04]} 29. Nb5 {[%emt 0:00:18]} a5 {[%emt 0:00:
11]} 30. Na7 {[%emt 0:00:20]} Nd6 {[%emt 0:00:01]} 31. f3 {[%emt 0:00:03]} Ke8
{[%emt 0:00:01]} 32. Nc6 {[%emt 0:00:01]} f6 {[%emt 0:00:02]} 33. Kf2 {[%emt 0:
00:02]} Kd7 {[%emt 0:00:00]} 34. Nd4 {[%emt 0:00:02]} e5 {[%emt 0:00:01]} 35.
Nc2 {[%emt 0:00:05]} Kc6 {[%emt 0:00:00]} 36. Ke3 {[%emt 0:00:03]} Kc5 {
[%emt 0:00:02]} 37. Kd3 {[%emt 0:00:02]} Nf5 {[%emt 0:00:08]} 38. g4 {[%emt 0:
00:02]} Nd6 {[%emt 0:00:02]} 39. a3 {[%emt 0:00:02]} Nf7 {[%emt 0:00:04]} 40.
b4+ {[%emt 0:00:01]} axb4 {[%emt 0:00:01]} 41. axb4+ Kc6 {[%emt 0:00:00]} 42.
Ne3 {[%emt 0:00:03]} Nd8 {[%emt 0:00:02]} 43. Ke4 {[%emt 0:00:02]} g6 {[%emt 0:
00:07]} 44. Nd5 {[%emt 0:00:02]} b5 {[%emt 0:00:01]} 45. cxb5+ {[%emt 0:00:03]}
Kxb5 {[%emt 0:00:03]} 46. Nxf6 {[%emt 0:00:01]} Nc6 47. Nd7 {[%emt 0:00:04]}
Nxb4 {[%emt 0:00:02]} 48. Nxe5 {[%emt 0:00:02]} g5 {[%emt 0:00:00]} 49. Nf7 {
[%emt 0:00:01]} 1-0

[Event "GER-ch Blitz 2019"]
[Site "Magdeburg"]
[Date "2019.05.25"]
[Round "11.3"]
[White "Ehmann, Thilo"]
[Black "Koch, Thomas"]
[Result "1/2-1/2"]
[ECO "B54"]
[WhiteElo "2291"]
[BlackElo "2474"]
[Annotator "ChessBase"]
[PlyCount "168"]
[EventDate "2019.05.25"]
[EventType "tourn"]
[EventCountry "GER"]
[Tiebreak "Number of wins+Number of black wins"]
[SourceTitle "playchess.com"]
[Source "ChessBase"]
[SourceQuality "1"]
[TimeControl "180+2"]

1. e4 {[%emt 0:00:00]} c5 {[%emt 0:00:00]} 2. Nf3 {[%emt 0:00:00]} d6 {[%emt 0:
00:00]} 3. d4 {[%emt 0:00:00]} cxd4 {[%emt 0:00:01]} 4. Nxd4 {[%emt 0:00:01]}
Nf6 {[%emt 0:00:01]} 5. f3 {[%emt 0:00:00]} a6 {[%emt 0:00:02]} 6. c4 {[%emt 0:
00:01]} e6 {[%emt 0:00:01]} 7. Nc3 {[%emt 0:00:00]} Be7 {[%emt 0:00:01]} 8. Be3
{[%emt 0:00:01]} O-O {[%emt 0:00:01]} 9. Be2 {[%emt 0:00:01]} b6 {[%emt 0:00:
01]} 10. Qd2 {[%emt 0:00:01]} Bb7 {[%emt 0:00:01]} 11. O-O {[%emt 0:00:01]}
Nbd7 {[%emt 0:00:01]} 12. Rfd1 {[%emt 0:00:04]} Rc8 {[%emt 0:00:02]} 13. Rac1 {
[%emt 0:00:01]} Qc7 {[%emt 0:00:02]} 14. Bf1 {[%emt 0:00:02]} Qb8 {[%emt 0:00:
01]} 15. Kh1 {[%emt 0:00:04]} Rfd8 {[%emt 0:00:02]} 16. Qf2 {[%emt 0:00:02]}
Re8 {[%emt 0:00:04]} 17. b3 {[%emt 0:00:05]} Nc5 {[%emt 0:00:09]} 18. b4 {
[%emt 0:00:20]} Ncd7 {[%emt 0:00:01]} 19. Nb3 {[%emt 0:00:14]} Bd8 {[%emt 0:00:
12]} 20. Qg1 {[%emt 0:00:20]} Bc7 {[%emt 0:00:08]} 21. Bf2 {[%emt 0:00:05]} h6
{[%emt 0:00:30]} 22. a3 {[%emt 0:00:03]} Bd8 {[%emt 0:00:04]} 23. Rb1 {[%emt 0:
00:33]} Bc7 {[%emt 0:00:12]} 24. Rdc1 {[%emt 0:00:03]} Bc6 {[%emt 0:00:05]} 25.
a4 {[%emt 0:00:16]} Ne5 {[%emt 0:00:14]} 26. c5 {[%emt 0:00:20]} bxc5 {[%emt 0:
00:08]} 27. bxc5 {[%emt 0:00:03]} Qa8 {[%emt 0:00:10]} 28. cxd6 {[%emt 0:00:09]
} Bxd6 {[%emt 0:00:01]} 29. Na5 {[%emt 0:00:04]} Ned7 {[%emt 0:00:15]} 30. Be2
{[%emt 0:00:13]} Bf4 {[%emt 0:00:05]} 31. Rc2 {[%emt 0:00:03]} Bxa4 32. Ra2
Rxc3 {[%emt 0:00:12]} 33. Rxa4 {[%emt 0:00:01]} Rec8 {[%emt 0:00:06]} 34. Raa1
{[%emt 0:00:02]} Be5 {[%emt 0:00:03]} 35. Nb3 {[%emt 0:00:09]} Rxb3 {[%emt 0:
00:19]} 36. Rxb3 {[%emt 0:00:01]} Bxa1 {[%emt 0:00:01]} 37. Qxa1 {[%emt 0:00:
01]} Qc6 {[%emt 0:00:07]} 38. g3 {[%emt 0:00:11]} Qc1+ {[%emt 0:00:03]} 39.
Qxc1 {[%emt 0:00:02]} Rxc1+ {[%emt 0:00:01]} 40. Kg2 {[%emt 0:00:01]} Ra1 {
[%emt 0:00:03]} 41. Rb7 {[%emt 0:00:06]} Ra2 {[%emt 0:00:05]} 42. Bc4 {[%emt 0:
00:02]} Ra4 {[%emt 0:00:04]} 43. Bf1 {[%emt 0:00:03]} a5 {[%emt 0:00:02]} 44.
Ra7 {[%emt 0:00:06]} Ra2 {[%emt 0:00:03]} 45. Bc4 {[%emt 0:00:01]} Ra3 {
[%emt 0:00:05]} 46. Bb5 {[%emt 0:00:05]} Ne5 {[%emt 0:00:03]} 47. Be2 {[%emt 0:
00:09]} Ra2 {[%emt 0:00:01]} 48. Bf1 {[%emt 0:00:02]} a4 {[%emt 0:00:05]} 49.
Ra5 {[%emt 0:00:07]} Neg4 {[%emt 0:00:06]} 50. fxg4 {[%emt 0:00:05]} Nxe4 {
[%emt 0:00:02]} 51. Ra8+ {[%emt 0:00:07]} Kh7 {[%emt 0:00:02]} 52. Bd3 {
[%emt 0:00:00]} Rxf2+ {[%emt 0:00:06]} 53. Kg1 {[%emt 0:00:01]} Ra2 {[%emt 0:
00:07]} 54. Bxe4+ {[%emt 0:00:01]} g6 {[%emt 0:00:01]} 55. h4 {[%emt 0:00:05]}
Kg7 {[%emt 0:00:01]} 56. g5 {[%emt 0:00:01]} hxg5 {[%emt 0:00:01]} 57. hxg5 {
[%emt 0:00:00]} a3 {[%emt 0:00:01]} 58. Bf3 {[%emt 0:00:06]} Kh7 {[%emt 0:00:
06]} 59. Be4 {[%emt 0:00:07]} Re2 {[%emt 0:00:02]} 60. Bf3 {[%emt 0:00:01]} Re3
{[%emt 0:00:02]} 61. Kf2 {[%emt 0:00:00]} Rb3 {[%emt 0:00:00]} 62. Be2 {
[%emt 0:00:01]} Kg7 {[%emt 0:00:03]} 63. Bc4 {[%emt 0:00:02]} Rc3 {[%emt 0:00:
02]} 64. Be2 {[%emt 0:00:02]} e5 {[%emt 0:00:04]} 65. Ra5 {[%emt 0:00:03]} e4 {
[%emt 0:00:01]} 66. Re5 {[%emt 0:00:02]} a2 {[%emt 0:00:04]} 67. Ra5 {[%emt 0:
00:01]} Rc2 {[%emt 0:00:01]} 68. Ke3 {[%emt 0:00:01]} Rb2 {[%emt 0:00:01]} 69.
Bg4 {[%emt 0:00:01]} Rg2 {[%emt 0:00:03]} 70. Kf4 {[%emt 0:00:02]} e3 {[%emt 0:
00:02]} 71. Kxe3 {[%emt 0:00:04]} Rxg3+ {[%emt 0:00:01]} 72. Kf4 {[%emt 0:00:
00]} Rg2 {[%emt 0:00:01]} 73. Ra7 {[%emt 0:00:02]} Rf2+ {[%emt 0:00:01]} 74.
Bf3 {[%emt 0:00:01]} Rd2 {[%emt 0:00:03]} 75. Ke3 {[%emt 0:00:02]} Rd6 {
[%emt 0:00:06]} 76. Rxa2 Re6+ 77. Kf4 {[%emt 0:00:04]} Re7 {[%emt 0:00:01]} 78.
Ra6 {[%emt 0:00:01]} Rc7 {[%emt 0:00:01]} 79. Bd5 {[%emt 0:00:02]} Re7 {
[%emt 0:00:01]} 80. Rd6 {[%emt 0:00:02]} Rc7 {[%emt 0:00:01]} 81. Bc6 {[%emt 0:
00:01]} Rc8 {[%emt 0:00:02]} 82. Bd5 {[%emt 0:00:05]} Rc7 {[%emt 0:00:01]} 83.
Rc6 Rxc6 {[%emt 0:00:03]} 84. Bxc6 {[%emt 0:00:05]} f6 {[%emt 0:00:01]} 1/2-1/2

[Event "GER-ch Blitz 2019"]
[Site "Magdeburg"]
[Date "2019.05.25"]
[Round "11.4"]
[White "Wichmann, Cliff"]
[Black "Kopylov, Michael"]
[Result "0-1"]
[ECO "D02"]
[WhiteElo "2280"]
[BlackElo "2413"]
[Annotator "NA"]
[PlyCount "127"]
[EventDate "2019.05.25"]
[EventType "tourn"]
[EventCountry "GER"]
[Tiebreak "Number of wins+Number of black wins"]
[SourceTitle "playchess.com"]
[Source "ChessBase"]
[SourceQuality "1"]
[TimeControl "180+2"]

1. d4 {[%emt 0:00:00]} d5 {[%emt 0:00:02]} 2. Nf3 {[%emt 0:00:01]} e6 {[%emt 0:
00:02]} 3. c4 {[%emt 0:00:01]} c6 {[%emt 0:00:01]} 4. Qc2 {[%emt 0:00:03]} Nf6
{[%emt 0:00:05]} 5. g3 {[%emt 0:00:02]} dxc4 {[%emt 0:00:01]} 6. Qxc4 {[%emt 0:
00:03]} b5 {[%emt 0:00:00]} 7. Qc2 {[%emt 0:00:06]} Bb7 {[%emt 0:00:01]} 8. Bg2
{[%emt 0:00:02]} Nbd7 {[%emt 0:00:01]} 9. O-O {[%emt 0:00:04]} c5 {[%emt 0:00:
02]} 10. dxc5 {[%emt 0:00:04]} Bxc5 {[%emt 0:00:03]} 11. Bf4 {[%emt 0:00:06]}
Rc8 {[%emt 0:00:07]} 12. Qd1 {[%emt 0:00:08]} O-O {[%emt 0:00:15]} 13. Nbd2 {
[%emt 0:00:02]} Qb6 {[%emt 0:00:06]} 14. Nb3 {[%emt 0:00:09]} Rfd8 {[%emt 0:00:
02]} 15. Qe1 {[%emt 0:00:10]} Be7 {[%emt 0:00:19]} 16. Qa5 {[%emt 0:00:11]} Rc2
{[%emt 0:00:25]} 17. Rac1 {[%emt 0:00:30]} Rdc8 {[%emt 0:00:16]} 18. Qxb6 {
[%emt 0:00:21]} Nxb6 {[%emt 0:00:04]} 19. Nfd4 {[%emt 0:00:02]} Bxg2 {[%emt 0:
00:34]} 20. Kxg2 {[%emt 0:00:02]} Rxb2 {[%emt 0:00:12]} 21. Nc6 {[%emt 0:00:01]
} Nfd5 {[%emt 0:00:18]} 22. e4 {[%emt 0:00:34]} Nxf4+ {[%emt 0:00:01]} 23. gxf4
{[%emt 0:00:01]} Kf8 {[%emt 0:00:21]} 24. Nxa7 {[%emt 0:00:07]} Rxc1 {[%emt 0:
00:04]} 25. Rxc1 {[%emt 0:00:01]} Rxa2 {[%emt 0:00:05]} 26. Nxb5 {[%emt 0:00:
03]} Bh4 {[%emt 0:00:02]} 27. Rf1 {[%emt 0:00:06]} Nc4 {[%emt 0:00:01]} 28. Kf3
{[%emt 0:00:10]} Rb2 {[%emt 0:00:03]} 29. N5d4 {[%emt 0:00:07]} e5 {[%emt 0:00:
10]} 30. fxe5 {[%emt 0:00:11]} Nxe5+ {[%emt 0:00:01]} 31. Kf4 {[%emt 0:00:10]}
f6 {[%emt 0:00:07]} 32. Nc5 {[%emt 0:00:08]} Bxf2 {[%emt 0:00:03]} 33. Nce6+ {
[%emt 0:00:08]} Kf7 {[%emt 0:00:01]} 34. h4 {[%emt 0:00:06]} Bxh4 {[%emt 0:00:
03]} 35. Ke3 {[%emt 0:00:02]} Bg3 {[%emt 0:00:05]} 36. Nc5 {[%emt 0:00:03]}
Bf2+ {[%emt 0:00:01]} 37. Rxf2 {[%emt 0:00:03]} Ng4+ {[%emt 0:00:01]} 38. Kf4 {
[%emt 0:00:02]} Nxf2 {[%emt 0:00:01]} 39. Nce6 {[%emt 0:00:02]} Nd3+ {[%emt 0:
00:02]} 40. Ke3 {[%emt 0:00:01]} Ne5 {[%emt 0:00:00]} 41. Nf4 Ra2 {[%emt 0:00:
02]} 42. Nd5 {[%emt 0:00:02]} Ra3+ {[%emt 0:00:01]} 43. Kf2 {[%emt 0:00:02]} g6
{[%emt 0:00:01]} 44. Nb5 {[%emt 0:00:01]} Ra4 {[%emt 0:00:03]} 45. Nbc3 {
[%emt 0:00:01]} Rc4 {[%emt 0:00:00]} 46. Ke3 {[%emt 0:00:01]} h5 {[%emt 0:00:
02]} 47. Kd2 {[%emt 0:00:02]} h4 {[%emt 0:00:01]} 48. Ne3 {[%emt 0:00:01]} Rc8
{[%emt 0:00:03]} 49. Nb5 {[%emt 0:00:01]} Rd8+ {[%emt 0:00:01]} 50. Ke2 {
[%emt 0:00:01]} h3 {[%emt 0:00:00]} 51. Kf2 {[%emt 0:00:00]} h2 {[%emt 0:00:02]
} 52. Kg2 {[%emt 0:00:01]} Rd2+ {[%emt 0:00:00]} 53. Kh1 {[%emt 0:00:02]} Nf3 {
[%emt 0:00:02]} 54. Nf1 {[%emt 0:00:02]} Rb2 {[%emt 0:00:04]} 55. Nd6+ {
[%emt 0:00:04]} Ke6 {[%emt 0:00:01]} 56. Nc4 {[%emt 0:00:00]} Rc2 {[%emt 0:00:
02]} 57. Nce3 {[%emt 0:00:01]} Rf2 {[%emt 0:00:03]} 58. e5 {[%emt 0:00:05]}
fxe5 {[%emt 0:00:03]} 59. Ng3 {[%emt 0:00:02]} Ra2 {[%emt 0:00:04]} 60. Nef1 {
[%emt 0:00:01]} g5 {[%emt 0:00:02]} 61. Ne4 {[%emt 0:00:02]} g4 {[%emt 0:00:01]
} 62. Neg3 {[%emt 0:00:00]} Ke7 {[%emt 0:00:02]} 63. Nf5+ {[%emt 0:00:01] Ra1 
[%clk 0:00:17] N5g3 [%clk 0:01:20]} Kd8 {[%emt 0:00:02] Kg2 [%clk 0:01:21] e4 
[%clk 0:00:15] Ne3 [%clk 0:01:22]} 64. Nd4 {[%emt 0:00:05] Kf4 [%clk 0:01:23]
Qf3+ [%clk 0:00:18] Kg5 [%clk 0:01:24] Qf5+ [%clk 0:00:20] Kh4 [%clk 0:01:26]
Nf3+ [%clk 0:00:20] Kg3 [%clk 0:01:27] Ne5 [%clk 0:00:21] Kh4 [%clk 0:01:27]
Qxg4#} 0-1

[Event "GER-ch Blitz 2019"]
[Site "Magdeburg"]
[Date "2019.05.25"]
[Round "11.5"]
[White "Kirchner, Thomas"]
[Black "Feuerstack, Aljoscha"]
[Result "1/2-1/2"]
[ECO "B40"]
[WhiteElo "2311"]
[BlackElo "2441"]
[Annotator "NA"]
[PlyCount "176"]
[EventDate "2019.05.25"]
[EventType "tourn"]
[EventCountry "GER"]
[Tiebreak "Number of wins+Number of black wins"]
[SourceTitle "playchess.com"]
[Source "ChessBase"]
[SourceQuality "1"]
[TimeControl "180+2"]

1. e4 {[%emt 0:00:00]} c5 {[%emt 0:00:00]} 2. Nf3 {[%emt 0:00:00]} e6 {[%emt 0:
00:00]} 3. c3 {[%emt 0:00:02]} Nf6 {[%emt 0:00:03]} 4. Bd3 {[%emt 0:00:04]} d5
{[%emt 0:00:01]} 5. e5 {[%emt 0:00:02]} Nfd7 {[%emt 0:00:01]} 6. O-O {[%emt 0:
00:02]} Nc6 {[%emt 0:00:02]} 7. Re1 {[%emt 0:00:01]} Qc7 {[%emt 0:00:03]} 8.
Bb5 {[%emt 0:00:01]} Be7 {[%emt 0:00:27]} 9. d4 {[%emt 0:00:01]} O-O {[%emt 0:
00:02]} 10. Be3 {[%emt 0:00:02]} a6 {[%emt 0:00:08]} 11. Be2 {[%emt 0:00:14]}
b5 {[%emt 0:00:11]} 12. Nbd2 {[%emt 0:00:01]} Bb7 {[%emt 0:00:08]} 13. Rc1 {
[%emt 0:00:02]} Rac8 {[%emt 0:00:28]} 14. Bd3 {[%emt 0:00:02]} c4 {[%emt 0:00:
10]} 15. Bb1 {[%emt 0:00:01]} b4 {[%emt 0:00:01]} 16. h4 {[%emt 0:00:18]} bxc3
{[%emt 0:00:05]} 17. bxc3 {[%emt 0:00:01]} Rfe8 {[%emt 0:00:28]} 18. Ng5 {
[%emt 0:00:26]} Nf8 {[%emt 0:00:18]} 19. Qh5 {[%emt 0:00:13]} Bxg5 {[%emt 0:00:
18]} 20. Bxg5 {[%emt 0:00:05]} Ne7 {[%emt 0:00:03]} 21. Nf3 {[%emt 0:00:06]}
Nf5 {[%emt 0:00:05]} 22. Bd2 {[%emt 0:00:12]} Qd7 {[%emt 0:00:08]} 23. g4 {
[%emt 0:00:16]} Ne7 {[%emt 0:00:02]} 24. Ng5 {[%emt 0:00:07]} Neg6 {[%emt 0:00:
01]} 25. Re3 {[%emt 0:00:09]} h6 {[%emt 0:00:04]} 26. Rf3 {[%emt 0:00:09]} hxg5
{[%emt 0:00:03]} 27. hxg5 {[%emt 0:00:01]} Bc6 {[%emt 0:00:08]} 28. Kg2 {
[%emt 0:00:02]} Rb8 {[%emt 0:00:02]} 29. Rh1 {[%emt 0:00:06]} Rxb1 {[%emt 0:00:
12]} 30. Rxb1 {[%emt 0:00:01]} Ba4 {[%emt 0:00:01]} 31. Rh1 {[%emt 0:00:08]}
Rb8 {[%emt 0:00:04]} 32. Rfh3 {[%emt 0:00:02]} f6 {[%emt 0:00:02]} 33. gxf6
gxf6 {[%emt 0:00:00]} 34. exf6 {[%emt 0:00:05]} Rb2 {[%emt 0:00:02]} 35. Qg5 {
[%emt 0:00:02]} Bc2 {[%emt 0:00:09]} 36. Rh8+ {[%emt 0:00:10]} Kf7 {[%emt 0:00:
01]} 37. R1h7+ {[%emt 0:00:04]} Nxh7 {[%emt 0:00:00]} 38. Rxh7+ {[%emt 0:00:00]
} Ke8 {[%emt 0:00:01]} 39. Rxd7 {[%emt 0:00:04]} Kxd7 {[%emt 0:00:00]} 40. f7 {
[%emt 0:00:01]} Rb8 {[%emt 0:00:01]} 41. Bc1 {[%emt 0:00:07]} Rf8 {[%emt 0:00:
01]} 42. Qf6 {[%emt 0:00:03]} Nh8 {[%emt 0:00:13]} 43. Ba3 {[%emt 0:00:05]}
Be4+ {[%emt 0:00:03]} 44. Kg1 {[%emt 0:00:04]} Rxf7 {[%emt 0:00:04]} 45. Qxh8
Rh7 46. Qxh7+ {[%emt 0:00:17]} Bxh7 {[%emt 0:00:01]} 47. Bc5 {[%emt 0:00:02]}
Ke8 {[%emt 0:00:00]} 48. Kg2 {[%emt 0:00:01]} Kf7 {[%emt 0:00:01]} 49. Kg3 {
[%emt 0:00:01]} Bb1 {[%emt 0:00:01]} 50. a3 Kg6 51. Kf4 {[%emt 0:00:01]} Kf6 {
[%emt 0:00:01]} 52. Bd6 {[%emt 0:00:02]} Bc2 {[%emt 0:00:01]} 53. Be5+ Kg6 54.
Bc7 {[%emt 0:00:04]} Kf6 {[%emt 0:00:01]} 55. Bd8+ {[%emt 0:00:00]} Kf7 {
[%emt 0:00:00]} 56. Bh4 {[%emt 0:00:02]} Bd1 {[%emt 0:00:02]} 57. f3 {[%emt 0:
00:01]} Be2 {[%emt 0:00:01]} 58. Ke3 {[%emt 0:00:02]} Bd1 {[%emt 0:00:00]} 59.
Bg3 {[%emt 0:00:02]} Kf6 {[%emt 0:00:01]} 60. Be5+ {[%emt 0:00:01]} Kf7 {
[%emt 0:00:01]} 61. Kf4 {[%emt 0:00:01]} Kg6 {[%emt 0:00:00]} 62. Kg3 {[%emt 0:
00:01]} Kf7 {[%emt 0:00:01]} 63. f4 Kg6 64. Kh4 {[%emt 0:00:02]} Be2 {[%emt 0:
00:01]} 65. Bd6 {[%emt 0:00:02]} Bf3 {[%emt 0:00:00]} 66. Kg3 {[%emt 0:00:01]}
Bd1 {[%emt 0:00:01]} 67. Be7 {[%emt 0:00:02]} Be2 {[%emt 0:00:01]} 68. Bd6 {
[%emt 0:00:01]} Bd1 {[%emt 0:00:00]} 69. Kh3 {[%emt 0:00:03]} Be2 {[%emt 0:00:
01]} 70. Kh4 {[%emt 0:00:01]} Bd1 {[%emt 0:00:01]} 71. Be7 {[%emt 0:00:04]} Be2
{[%emt 0:00:00]} 72. Bd8 {[%emt 0:00:01]} Bd1 {[%emt 0:00:01]} 73. Kg3 {
[%emt 0:00:02]} Be2 {[%emt 0:00:01]} 74. g5 {[%emt 0:00:03]} Kf5 {[%emt 0:00:
00]} 75. Bc7 {[%emt 0:00:03]} Bd1 {[%emt 0:00:02]} 76. Kf2 {[%emt 0:00:01]} Bh5
{[%emt 0:00:03]} 77. Ke3 {[%emt 0:00:01]} Be8 {[%emt 0:00:02]} 78. Be5 {
[%emt 0:00:05]} Ba4 {[%emt 0:00:02]} 79. Kf3 {[%emt 0:00:01]} Bd1+ {[%emt 0:00:
02]} 80. Kg3 {[%emt 0:00:00]} Be2 {[%emt 0:00:01]} 81. Kf2 {[%emt 0:00:07]} Bd1
{[%emt 0:00:00]} 82. Ke3 {[%emt 0:00:03]} Bb3 {[%emt 0:00:02]} 83. Kd2 {
[%emt 0:00:03]} Ba4 {[%emt 0:00:01]} 84. Kc1 {[%emt 0:00:02]} Bb3 {[%emt 0:00:
01]} 85. Kb2 {[%emt 0:00:00]} Ba4 {[%emt 0:00:00]} 86. Ka2 {[%emt 0:00:01]}
Bb3+ {[%emt 0:00:02]} 87. Ka1 {[%emt 0:00:01]} Ba4 {[%emt 0:00:00]} 88. Kb2 {
[%emt 0:00:00]} Bb3 {[%emt 0:00:01]} 1/2-1/2

[Event "GER-ch Blitz 2019"]
[Site "Magdeburg"]
[Date "2019.05.25"]
[Round "11.6"]
[White "Voege, Tobias"]
[Black "Heidrich, Manfred"]
[Result "1-0"]
[ECO "A81"]
[WhiteElo "2294"]
[BlackElo "2351"]
[Annotator "NA"]
[PlyCount "173"]
[EventDate "2019.05.25"]
[EventType "tourn"]
[EventCountry "GER"]
[Tiebreak "Number of wins+Number of black wins"]
[SourceTitle "playchess.com"]
[Source "ChessBase"]
[SourceQuality "1"]
[TimeControl "180+2"]

1. d4 {[%emt 0:00:00]} f5 {[%emt 0:00:00]} 2. g3 {[%emt 0:00:00]} Nf6 {[%emt 0:
00:00]} 3. Bg2 {[%emt 0:00:01]} g6 {[%emt 0:00:00]} 4. Nf3 {[%emt 0:00:01]} Bg7
{[%emt 0:00:00]} 5. O-O {[%emt 0:00:01]} d6 {[%emt 0:00:01]} 6. c4 {[%emt 0:00:
01]} O-O {[%emt 0:00:01]} 7. Nc3 {[%emt 0:00:03]} Qe8 {[%emt 0:00:01]} 8. d5 {
[%emt 0:00:01]} Na6 {[%emt 0:00:03]} 9. Nd4 {[%emt 0:00:02]} Bd7 {[%emt 0:00:
01]} 10. b3 {[%emt 0:00:14]} c6 {[%emt 0:00:02]} 11. Bb2 {[%emt 0:00:04]} Nc7 {
[%emt 0:00:01]} 12. dxc6 {[%emt 0:00:08]} bxc6 {[%emt 0:00:02]} 13. Rb1 {
[%emt 0:00:24]} Rb8 {[%emt 0:00:01]} 14. e4 {[%emt 0:00:03]} c5 {[%emt 0:00:11]
} 15. Nc2 {[%emt 0:00:10]} fxe4 {[%emt 0:00:11]} 16. Nxe4 {[%emt 0:00:02]} Nxe4
{[%emt 0:00:03]} 17. Bxe4 {[%emt 0:00:08]} Bf5 {[%emt 0:00:09]} 18. Bg2 {
[%emt 0:00:13]} Bxb2 {[%emt 0:00:08]} 19. Rxb2 {[%emt 0:00:01]} a5 {[%emt 0:00:
03]} 20. Ne3 {[%emt 0:00:09]} Bd7 {[%emt 0:00:01]} 21. Nd5 {[%emt 0:00:16]}
Nxd5 {[%emt 0:00:11]} 22. Qxd5+ {[%emt 0:00:06]} Qf7 {[%emt 0:00:09]} 23. Re2 {
[%emt 0:00:03]} Rfe8 {[%emt 0:00:17]} 24. Rfe1 {[%emt 0:00:05]} Qxd5 {[%emt 0:
00:07]} 25. Bxd5+ Kf8 26. Re4 {[%emt 0:00:06]} e5 {[%emt 0:00:17]} 27. f4 {
[%emt 0:00:07]} Bf5 {[%emt 0:00:00]} 28. R4e3 {[%emt 0:00:01]} exf4 {[%emt 0:
00:04]} 29. gxf4 {[%emt 0:00:28]} Rxe3 {[%emt 0:00:03]} 30. Rxe3 {[%emt 0:00:
05]} Re8 {[%emt 0:00:15]} 31. Kf2 {[%emt 0:00:15]} Bb1 {[%emt 0:00:06]} 32. Rh3
{[%emt 0:00:17]} Kg7 {[%emt 0:00:03]} 33. a3 {[%emt 0:00:01]} Bc2 {[%emt 0:00:
08]} 34. Rc3 {[%emt 0:00:06]} Bf5 {[%emt 0:00:02]} 35. Bc6 {[%emt 0:00:07]} Rc8
{[%emt 0:00:04]} 36. Bd5 {[%emt 0:00:01]} Kf6 {[%emt 0:00:17]} 37. Re3 {
[%emt 0:00:02]} Rb8 {[%emt 0:00:08]} 38. Bc6 {[%emt 0:00:01]} Bc2 {[%emt 0:00:
14]} 39. Ba4 {[%emt 0:00:02]} Bf5 {[%emt 0:00:07]} 40. Bc6 {[%emt 0:00:07]} Rc8
{[%emt 0:00:02]} 41. Bb5 {[%emt 0:00:03]} h6 {[%emt 0:00:10]} 42. b4 {[%emt 0:
00:03]} axb4 {[%emt 0:00:01]} 43. axb4 {[%emt 0:00:01]} cxb4 {[%emt 0:00:01]}
44. Rb3 {[%emt 0:00:01]} Ra8 {[%emt 0:00:04]} 45. Rxb4 {[%emt 0:00:05]} Ra2+ {
[%emt 0:00:02]} 46. Kg3 {[%emt 0:00:00]} h5 {[%emt 0:00:11]} 47. Bc6 {[%emt 0:
00:02]} Rc2 {[%emt 0:00:03]} 48. Bd5 {[%emt 0:00:02]} Rc3+ {[%emt 0:00:06]} 49.
Kf2 {[%emt 0:00:03]} h4 {[%emt 0:00:02]} 50. Rb6 {[%emt 0:00:04]} Ke7 {[%emt 0:
00:01]} 51. Rb7+ {[%emt 0:00:01]} Kd8 {[%emt 0:00:01]} 52. Rh7 {[%emt 0:00:02]}
Rc2+ {[%emt 0:00:03]} 53. Kg1 {[%emt 0:00:02]} h3 {[%emt 0:00:01]} 54. Rg7 {
[%emt 0:00:08]} Ke8 {[%emt 0:00:03]} 55. Rh7 {[%emt 0:00:02]} Kf8 {[%emt 0:00:
03]} 56. Rf7+ {[%emt 0:00:01]} Ke8 {[%emt 0:00:01]} 57. Rh7 {[%emt 0:00:01]}
Rd2 {[%emt 0:00:04]} 58. Rg7 {[%emt 0:00:01]} Rd4 {[%emt 0:00:04]} 59. Rg8+ {
[%emt 0:00:05]} Ke7 {[%emt 0:00:01]} 60. Rg7+ {[%emt 0:00:01]} Kd8 {[%emt 0:00:
02]} 61. Rg8+ {[%emt 0:00:02]} Kc7 {[%emt 0:00:01]} 62. Rg7+ {[%emt 0:00:01]}
Kb6 {[%emt 0:00:00]} 63. Kf2 {[%emt 0:00:01]} Rxf4+ {[%emt 0:00:01]} 64. Kg3 {
[%emt 0:00:00]} Rd4 {[%emt 0:00:02]} 65. Rb7+ {[%emt 0:00:02]} Ka5 {[%emt 0:00:
01]} 66. Rb5+ {[%emt 0:00:01]} Ka4 {[%emt 0:00:01]} 67. Rb6 {[%emt 0:00:01]}
Rd2 {[%emt 0:00:04]} 68. Rxd6 {[%emt 0:00:01]} Rg2+ {[%emt 0:00:01]} 69. Bxg2 {
[%emt 0:00:02]} hxg2 {[%emt 0:00:00]} 70. Kxg2 Kb4 {[%emt 0:00:01]} 71. Kg3 {
[%emt 0:00:02]} Kxc4 {[%emt 0:00:00]} 72. Kf4 {[%emt 0:00:01]} Bb1 {[%emt 0:00:
01]} 73. h4 {[%emt 0:00:01]} Kc5 {[%emt 0:00:01]} 74. Rd8 {[%emt 0:00:02]} Kc6
{[%emt 0:00:01]} 75. Kg5 {[%emt 0:00:01]} Kc7 {[%emt 0:00:01]} 76. Rd2 {
[%emt 0:00:01]} Be4 {[%emt 0:00:01]} 77. Kf6 {[%emt 0:00:01]} Kc6 {[%emt 0:00:
02]} 78. Rd4 {[%emt 0:00:03]} Bb1 {[%emt 0:00:01]} 79. Ke6 {[%emt 0:00:02]} Kc7
{[%emt 0:00:00]} 80. Rc4+ {[%emt 0:00:02]} Kd8 {[%emt 0:00:01]} 81. Rb4 {
[%emt 0:00:02]} Bf5+ {[%emt 0:00:03]} 82. Kf6 {[%emt 0:00:01]} Bc2 {[%emt 0:00:
02]} 83. Rg4 {[%emt 0:00:01]} Ke8 {[%emt 0:00:01]} 84. Rc4 {[%emt 0:00:03]} Bd3
{[%emt 0:00:03]} 85. Rc8+ Kd7 86. Rg8 {[%emt 0:00:02]} Kd6 {[%emt 0:00:02]} 87.
Rxg6 {[%emt 0:00:01]} 1-0